bitfinex/quotes_BTCUSD_20220105
["timestamp","ask_amount","ask_price","bid_price","bid_amount"]
[1641411048683,0.0001,45983.0,45973.0,1.46128469]
[1641411048881,0.0001,45983.0,45982.0,0.00129172]
[1641411049082,0.0001,45983.0,45982.0,0.85404548]
[1641411049281,0.0001,45983.0,45982.0,0.96277668]
[1641411049481,0.0001,45983.0,45982.0,1.01277668]
[1641411049683,0.0005,45995.0,45983.0,1.0]
[1641411049883,0.39284982,45995.0,45983.0,0.00122631]
[1641411050088,0.39284982,45995.0,45982.0,0.5]
[1641411050089,0.048,45989.0,45982.0,0.5]
[1641411050483,0.0044,45989.0,45983.0,0.00123247]
[1641411051282,0.0044,45989.0,45981.0,0.1087304]
[1641411051532,0.0008,45989.0,45976.0,0.25808858]
[1641411051731,0.0436,45988.0,45973.0,0.01217525]
[1641411052034,1.157,45981.0,45973.0,0.01217525]
[1641411052228,1.157,45979.0,45967.0,0.00120647]
[1641411052428,0.054403,45974.0,45963.0,0.25688846]
[1641411052629,1.157,45973.0,45961.0,0.36848655]
[1641411052829,1.2006,45973.0,45961.0,0.36848655]
[1641411053028,1.3506,45973.0,45961.0,0.42288602]
[1641411053229,1.3456,45973.0,45960.0,0.25688846]
[1641411053432,1.157,45971.0,45958.0,0.17018911]
[1641411053630,1.562487,45970.0,45961.0,0.12926257]
[1641411054027,1.662487,45970.0,45961.0,0.12926257]
[1641411054227,1.618887,45970.0,45961.0,0.12926257]
[1641411054428,1.518887,45970.0,45961.0,0.12926257]
[1641411054628,1.618887,45970.0,45961.0,0.12926257]
[1641411054829,1.662487,45970.0,45961.0,0.12926257]
[1641411055275,0.05,45969.0,45963.0,0.05440025]
[1641411055476,1.207,45969.0,45963.0,0.05440025]
[1641411056078,1.2067379,45969.0,45963.0,0.05440025]
[1641411056676,0.7067379,45969.0,45963.0,0.05440025]
[1641411056877,0.7067379,45969.0,45960.0,0.35079501]
[1641411057076,0.7067379,45969.0,45967.0,0.3282643]
[1641411057277,0.7067379,45969.0,45958.0,0.00125065]
[1641411057776,0.70792379,45969.0,45959.0,0.1846292]
[1641411057976,0.70792379,45969.0,45960.0,0.27796172]
[1641411058176,0.25792379,45969.0,45960.0,0.27796172]
[1641411058375,0.0436,45970.0,45969.0,0.39659204]
[1641411058779,1.157,45969.0,45967.0,0.00526068]
[1641411060223,0.0436,45970.0,45967.0,0.00526068]
[1641411060224,1.518887,45968.0,45967.0,0.00526068]
[1641411060528,0.0436,45978.0,45967.0,0.0065571]
[1641411060728,0.00124621,45984.0,45967.0,0.0065571]
[1641411060925,1.157,45982.0,45967.0,0.0065571]
[1641411061132,0.361887,45981.0,45967.0,0.0065571]
[1641411061332,0.00291775,45978.0,45967.0,0.18257853]
[1641411061526,0.00291775,45978.0,45969.0,0.39982676]
[1641411061724,0.00291775,45978.0,45967.0,0.18257853]
[1641411061725,0.00291775,45978.0,45967.0,0.0065571]
[1641411061926,0.361887,45977.0,45967.0,0.00526068]
[1641411062227,1.157,45976.0,45967.0,0.00526068]
[1641411062667,1.17706819,45976.0,45967.0,0.00526068]
[1641411062867,0.361887,45975.0,45967.0,0.00526068]
[1641411063068,1.077,45974.0,45967.0,0.00526068]
[1641411063467,1.101404,45974.0,45967.0,0.00526068]
[1641411063668,1.408887,45973.0,45967.0,0.00526068]
[1641411063871,1.047,45972.0,45967.0,0.00526068]
[1641411064067,0.411887,45971.0,45967.0,0.00526068]
[1641411064271,1.047,45970.0,45967.0,0.00526068]
[1641411064467,1.047,45968.0,45967.0,0.00526068]
[1641411064669,1.408887,45968.0,45967.0,0.00526068]
[1641411067321,1.452487,45968.0,45967.0,0.00526068]
[1641411067525,1.047,45967.0,45962.0,0.01217577]
[1641411067724,1.821887,45963.0,45962.0,0.01217577]
[1641411067923,1.821887,45963.0,45942.0,0.13173944]
[1641411067924,0.10670787,45950.0,45942.0,0.13173944]
[1641411068126,0.0436,45949.0,45944.0,0.00120057]
[1641411068323,1.408887,45948.0,45932.0,0.50128962]
[1641411068524,0.054437,45945.0,45932.0,0.00128962]
[1641411068723,1.452487,45944.0,45931.0,0.004]
[1641411068921,0.05,45943.0,45931.0,0.004]
[1641411069137,1.047,45940.0,45931.0,0.004]
[1641411069331,0.0436,45939.0,45935.0,0.00044613]
[1641411069526,0.0436,45940.0,45935.0,0.25613555]
[1641411070025,0.0436,45940.0,45935.0,0.00044613]
[1641411070281,0.0436,45940.0,45936.0,0.51527177]
[1641411070781,0.04341961,45940.0,45936.0,1.74749912]
[1641411070981,0.04341961,45940.0,45937.0,0.29264296]
[1641411071182,0.04341961,45940.0,45939.0,0.00127041]
[1641411072082,0.04341961,45940.0,45937.0,0.15982778]
[1641411072382,0.04341961,45940.0,45939.0,1.23222735]
[1641411072581,0.04341961,45940.0,45939.0,1.20222735]
[1641411072784,0.04341961,45940.0,45938.0,1.20222735]
[1641411072982,2.46913718,45941.0,45938.0,1.20222735]
[1641411073182,2.46913718,45941.0,45937.0,0.15982778]
[1641411073183,0.05,45941.0,45937.0,0.15982778]
[1641411073384,0.0401,45942.0,45937.0,0.15982778]
[1641411074026,0.0401,45942.0,45935.0,0.00044613]
[1641411074229,0.361887,45941.0,45935.0,0.00044613]
[1641411074423,1.157,45939.0,45935.0,0.00044613]
[1641411074621,1.157,45937.0,45935.0,0.00044613]
[1641411074822,1.861987,45936.0,45935.0,0.00044613]
[1641411075023,0.401987,45936.0,45935.0,0.00044613]
[1641411075221,0.0401,45936.0,45931.0,0.33880041]
[1641411075423,0.05,45935.0,45931.0,0.33880041]
[1641411075621,0.05,45935.0,45931.0,0.00884947]
[1641411076024,0.05,45935.0,45934.0,0.18191591]
[1641411077127,0.0401,45936.0,45934.0,0.18191591]
[1641411077322,0.0401,45936.0,45935.0,0.52970503]
[1641411077523,0.0401,45936.0,45935.0,0.23970503]
[1641411077976,1.15820821,45949.0,45935.0,0.23970503]
[1641411078176,0.0401,45948.0,45943.0,0.32863918]
[1641411078379,0.0401,45948.0,45945.0,0.12179302]
[1641411078380,0.65245,45947.0,45945.0,0.12179302]
[1641411078576,0.65245,45947.0,45946.0,0.00127795]
[1641411079175,0.65245,45947.0,45946.0,0.15940269]
[1641411079776,0.64745,45947.0,45946.0,0.15940269]
[1641411080177,0.64745,45947.0,45946.0,0.15812474]
[1641411080980,0.64745,45947.0,45943.0,0.55075182]
[1641411081178,0.64745,45947.0,45943.0,0.60516682]
[1641411081441,0.64745,45947.0,45946.0,0.00123496]
[1641411082231,0.64745,45947.0,45946.0,0.17055309]
[1641411082232,0.64671173,45947.0,45946.0,0.17055309]
[1641411083031,0.64671173,45947.0,45946.0,0.00123496]
[1641411083632,0.64789806,45947.0,45946.0,0.00123496]
[1641411083832,0.69789806,45947.0,45943.0,0.32863918]
[1641411085177,0.61789806,45947.0,45943.0,0.43791965]
[1641411085479,0.61789806,45947.0,45945.0,0.15427585]
[1641411085678,0.61789806,45947.0,45946.0,0.17150739]
[1641411086679,0.66789806,45947.0,45946.0,0.17150739]
[1641411086878,0.66289806,45947.0,45946.0,0.17150739]
[1641411087881,0.61789806,45947.0,45946.0,0.17150739]
[1641411088081,0.61789806,45947.0,45946.0,0.40262854]
[1641411088383,0.61789806,45947.0,45946.0,0.22150739]
[1641411088581,0.61789806,45947.0,45946.0,0.22635578]
[1641411089031,0.61789806,45947.0,45946.0,0.44888192]
[1641411089931,0.61789806,45947.0,45946.0,0.22635578]
[1641411091331,0.61789806,45947.0,45946.0,0.17635578]
[1641411091532,0.61789806,45947.0,45946.0,0.00484839]
[1641411093875,0.61789806,45947.0,45946.0,0.23033517]
[1641411094077,0.61789806,45947.0,45946.0,0.05484839]
[1641411094678,0.61789806,45947.0,45946.0,1.65457387]
[1641411094880,0.61789806,45947.0,45946.0,1.73697961]
[1641411095080,0.61789806,45947.0,45946.0,0.33697961]
[1641411095276,0.61789806,45947.0,45946.0,0.33631861]
[1641411095476,0.61789806,45947.0,45946.0,0.23705676]
[1641411095677,0.61789806,45947.0,45946.0,1.06705676]
[1641411095877,0.61289806,45947.0,45946.0,1.06705676]
[1641411096078,0.61289806,45947.0,45946.0,1.16705676]
[1641411096276,0.61289806,45947.0,45946.0,1.06705676]
[1641411096922,0.61289806,45947.0,45946.0,0.23705676]
[1641411097122,0.61289806,45947.0,45946.0,0.00129629]
[1641411097322,0.61289806,45947.0,45946.0,0.2253051]
[1641411097822,0.61289806,45947.0,45946.0,1.45686274]
[1641411098025,0.61289806,45947.0,45946.0,1.23285393]
[1641411098229,0.61289806,45947.0,45946.0,1.23155764]
[1641411098230,0.65299806,45947.0,45946.0,1.23155764]
[1641411098424,0.70299806,45947.0,45944.0,0.00044902]
[1641411098627,0.65299806,45947.0,45946.0,0.00128704]
[1641411098824,0.65299806,45947.0,45944.0,0.00044902]
[1641411099527,0.65299806,45947.0,45944.0,0.05486711]
[1641411099730,0.65281013,45947.0,45946.0,0.15077545]
[1641411100577,0.65281013,45947.0,45946.0,0.2917436]
[1641411100976,0.61271013,45947.0,45946.0,0.67784062]
[1641411101974,0.61271013,45947.0,45946.0,0.72784062]
[1641411102177,0.61271013,45947.0,45946.0,0.82784062]
[1641411102679,0.61159696,45947.0,45946.0,1.58784062]
[1641411102877,0.61159696,45947.0,45946.0,2.05941094]
[1641411103778,0.61159696,45947.0,45946.0,1.90941094]
[1641411104028,0.61159696,45947.0,45946.0,1.76844279]
[1641411105027,0.61159696,45947.0,45946.0,1.82285279]
[1641411105232,0.61159696,45947.0,45946.0,0.59128247]
[1641411105830,0.61159696,45947.0,45946.0,0.39094541]
[1641411106831,0.61159696,45947.0,45946.0,0.53649224]
[1641411107784,0.61133501,45947.0,45946.0,0.53649224]
[1641411108383,0.60633501,45947.0,45946.0,0.53649224]
[1641411111087,0.59133501,45947.0,45946.0,0.53649224]
[1641411112527,0.59133501,45947.0,45946.0,0.53149224]
[1641411112930,0.59133501,45947.0,45945.0,0.16322662]
[1641411112931,0.59133501,45947.0,45945.0,0.05440162]
[1641411113130,0.59133501,45947.0,45944.0,0.10926592]
[1641411113131,0.59133501,45947.0,45944.0,0.00044592]
[1641411114130,0.59133501,45947.0,45944.0,0.38895759]
[1641411114328,0.59133501,45947.0,45944.0,0.4433798]
[1641411114530,0.59133501,45947.0,45944.0,0.58847507]
[1641411114731,0.59133501,45947.0,45944.0,0.4433798]
[1641411114928,0.59133501,45947.0,45944.0,0.44293388]
[1641411115180,0.59133501,45947.0,45944.0,0.49293388]
[1641411115585,0.59133501,45947.0,45944.0,0.44293388]
[1641411115780,0.59133501,45947.0,45944.0,0.05442221]
[1641411117082,0.59133501,45947.0,45940.0,0.45283366]
[1641411117280,0.59133501,45947.0,45943.0,0.00044904]
[1641411118086,0.59133501,45947.0,45944.0,0.29660589]
[1641411118485,0.59133501,45947.0,45944.0,0.24219089]
[1641411119027,0.59133501,45947.0,45945.0,0.27692708]
[1641411119426,0.59133501,45947.0,45945.0,0.33134108]
[1641411120026,0.59133501,45947.0,45945.0,0.16324308]
[1641411120226,0.59133501,45947.0,45945.0,0.21765708]
[1641411121231,0.59133501,45947.0,45945.0,0.16324308]
[1641411122327,0.59133501,45947.0,45945.0,0.21765908]
[1641411122527,0.59133501,45947.0,45945.0,0.16324308]
[1641411123980,0.58633501,45947.0,45945.0,0.16324308]
[1641411124383,0.58633501,45947.0,45945.0,0.10882908]
[1641411124584,0.405387,45946.0,45943.0,0.00044904]
[1641411124785,1.821887,45944.0,45943.0,0.00044904]
[1641411124983,1.865387,45944.0,45943.0,0.00044904]
[1641411125284,0.00127251,45939.0,45931.0,0.004]
[1641411125484,0.405387,45938.0,45931.0,0.004]
[1641411125685,0.405387,45938.0,45932.0,0.10886896]
[1641411125686,0.05444,45936.0,45932.0,0.10886896]
[1641411125884,1.441887,45935.0,45932.0,0.10886896]
[1641411126084,0.001272,45933.0,45931.0,0.004]
[1641411126286,1.46,45931.0,45924.0,0.81191968]
[1641411126547,1.157,45929.0,45926.0,0.81191968]
[1641411126753,1.514452,45927.0,45926.0,0.81191968]
[1641411126944,2.50617401,45927.0,45926.0,0.81191968]
[1641411127144,1.46,45926.0,45921.0,0.004]
[1641411127348,1.46,45926.0,45918.0,0.01217727]
[1641411127349,0.00121012,45922.0,45918.0,0.01117727]
[1641411127547,0.99172201,45921.0,45918.0,0.82575677]
[1641411128145,0.99172201,45921.0,45918.0,0.01117727]
[1641411128349,0.99172201,45921.0,45917.0,0.05445761]
[1641411128946,0.99172201,45921.0,45920.0,0.17176637]
[1641411129147,0.62983501,45921.0,45920.0,0.17176637]
[1641411129551,0.62983501,45921.0,45919.0,0.054449]
[1641411129746,0.62934233,45921.0,45913.0,0.00126105]
[1641411129946,0.62934233,45921.0,45913.0,0.11015905]
[1641411130188,0.62934233,45921.0,45913.0,0.21905619]
[1641411130387,0.62934233,45921.0,45913.0,0.21405619]
[1641411130588,0.62934233,45921.0,45919.0,0.1967088]
[1641411131392,0.62934233,45921.0,45918.0,0.05445054]
[1641411132490,0.361887,45920.0,45918.0,0.23201397]
[1641411132689,0.356887,45920.0,45918.0,0.23201397]
[1641411133292,0.351887,45920.0,45918.0,0.23201397]
[1641411133791,0.351887,45920.0,45918.0,0.05445054]
[1641411135232,0.63419352,45921.0,45918.0,0.40453328]
[1641411136933,0.63419352,45921.0,45918.0,0.38953328]
[1641411137135,0.63419352,45921.0,45918.0,0.03945054]
[1641411137978,0.63419352,45921.0,45917.0,0.00045439]
[1641411137979,0.361881,45920.0,45917.0,0.00045439]
[1641411139479,0.63419352,45921.0,45917.0,0.00045439]
[1641411139682,0.361881,45920.0,45917.0,0.00045439]
[1641411139885,0.00124464,45918.0,45917.0,0.00045439]
[1641411140083,2.15800613,45918.0,45911.0,0.004]
[1641411140282,0.00120045,45912.0,45911.0,0.004]
[1641411140483,1.86658145,45912.0,45911.0,0.004]
[1641411140683,2.45291646,45912.0,45911.0,0.004]
[1641411140882,0.99291646,45912.0,45911.0,0.004]
[1641411141085,1.58291646,45912.0,45911.0,0.002]
[1641411141533,1.96529776,45912.0,45911.0,0.002]
[1641411141728,1.33179776,45912.0,45911.0,0.002]
[1641411142330,1.22,45911.0,45906.0,0.0121779]
[1641411142530,0.405381,45910.0,45906.0,0.0121779]
[1641411142731,0.00122976,45907.0,45906.0,0.0121779]
[1641411142930,1.86661076,45907.0,45906.0,0.0121779]
[1641411143129,3.02361076,45907.0,45906.0,0.0121779]
[1641411143328,0.99294577,45907.0,45906.0,0.0121779]
[1641411144230,0.99294577,45907.0,45904.0,0.05446904]
[1641411144430,0.62983501,45907.0,45904.0,0.05446904]
[1641411144633,0.62983501,45907.0,45903.0,0.23014176]
[1641411145279,0.63468764,45907.0,45903.0,0.23014176]
[1641411145679,0.63468764,45907.0,45903.0,0.17567276]
[1641411146784,0.63468764,45907.0,45901.0,0.004]
[1641411146981,0.054475,45905.0,45901.0,0.004]
[1641411147183,0.0435,45904.0,45901.0,0.004]
[1641411147785,0.0435,45904.0,45902.0,0.16742748]
[1641411148684,0.04323805,45904.0,45902.0,0.16742748]
[1641411150041,0.04323805,45904.0,45901.0,0.00444095]
[1641411150341,0.361881,45903.0,45901.0,0.00444095]
[1641411150645,0.7335,45902.0,45901.0,0.00444095]
[1641411150840,0.405381,45902.0,45901.0,0.00444095]
[1641411151739,0.0435,45902.0,45901.0,0.00444095]
[1641411151944,0.05485311,45903.0,45901.0,0.00444095]
[1641411152240,0.4735,45902.0,45901.0,0.00444095]
[1641411152681,0.835381,45902.0,45901.0,0.00444095]
[1641411153084,2.50171601,45902.0,45901.0,0.00444095]
[1641411153483,1.46,45901.0,45891.0,0.004]
[1641411153688,0.0012694,45896.0,45891.0,0.004]
[1641411153883,0.405381,45895.0,45891.0,0.004]
[1641411154082,0.509868,45895.0,45891.0,0.004]
[1641411154284,0.455381,45895.0,45891.0,0.004]
[1641411154884,0.455381,45895.0,45892.0,1.23311676]
[1641411155185,1.454489,45893.0,45892.0,1.23311676]
[1641411155384,0.097989,45893.0,45892.0,1.23311676]
[1641411155986,0.997989,45893.0,45892.0,1.23311676]
[1641411156455,1.747879,45893.0,45892.0,0.92951676]
[1641411156645,2.69609501,45893.0,45892.0,0.70951676]
[1641411157046,3.85309501,45893.0,45892.0,0.70951676]
[1641411157244,0.361881,45892.0,45882.0,0.0001]
[1641411157445,0.361881,45892.0,45887.0,0.82349803]
[1641411157446,2.717,45890.0,45887.0,0.82349803]
[1641411157647,2.98009525,45888.0,45887.0,8.03e-06]
[1641411157845,3.86144439,45888.0,45887.0,8.03e-06]
[1641411158045,3.86144439,45888.0,45879.0,0.00035762]
[1641411158046,4.39284439,45888.0,45879.0,0.00035762]
[1641411158245,4.39284439,45888.0,45880.0,0.01222362]
[1641411158246,1.157,45883.0,45880.0,0.01222362]
[1641411158446,0.05576635,45872.0,45871.0,0.004]
[1641411158648,1.46,45871.0,45861.0,0.004]
[1641411158846,0.62983501,45870.0,45861.0,1.73036346]
[1641411159044,0.00126795,45864.0,45861.0,1.72536346]
[1641411159446,0.0435,45863.0,45860.0,0.58779669]
[1641411159649,0.0435,45863.0,45860.0,0.4378]
[1641411160487,0.00124824,45862.0,45860.0,0.4378]
[1641411160687,0.05273422,45861.0,45860.0,0.4378]
[1641411161090,0.09474824,45862.0,45860.0,0.4378]
[1641411162191,0.09474824,45862.0,45860.0,0.58732405]
[1641411162387,0.09960559,45862.0,45860.0,0.58732405]
[1641411163692,0.09960559,45862.0,45860.0,0.4378]
[1641411163944,0.361901,45861.0,45860.0,0.4378]
[1641411164137,0.09960559,45862.0,45860.0,0.4378]
[1641411164338,0.58633501,45861.0,45860.0,0.4378]
[1641411164537,0.99173601,45861.0,45860.0,0.4378]
[1641411165136,0.62983501,45861.0,45860.0,0.4378]
[1641411166142,0.62983501,45861.0,45860.0,0.87662672]
[1641411167344,0.62983501,45861.0,45860.0,0.4378]
[1641411171556,1.09996149,45861.0,45860.0,0.4378]
[1641411171755,0.81038501,45861.0,45860.0,0.4378]
[1641411171953,0.71038501,45861.0,45860.0,0.4378]
[1641411172156,1.59228601,45861.0,45860.0,0.4378]
[1641411172956,1.49228601,45861.0,45851.0,0.83245239]
[1641411173157,0.054538,45859.0,45851.0,0.83245239]
[1641411173456,0.405401,45858.0,45854.0,0.00043933]
[1641411173657,0.05,45857.0,45854.0,0.00043933]
[1641411173855,0.405401,45856.0,45854.0,0.00043933]
[1641411174257,1.5157864,45855.0,45854.0,0.00043933]
[1641411174456,1.9211874,45855.0,45854.0,0.00043933]
[1641411174658,2.0711874,45855.0,45854.0,0.00043933]
[1641411175490,2.65752241,45855.0,45854.0,0.00043933]
[1641411175688,2.65752241,45855.0,45848.0,0.60956578]
[1641411175689,1.821901,45854.0,45848.0,0.60956578]
[1641411175888,0.00128522,45852.0,45848.0,0.60956578]
[1641411176088,0.00127372,45849.0,45841.0,0.004]
[1641411176288,0.0012468,45843.0,45841.0,0.004]
[1641411176492,1.821901,45842.0,45841.0,0.004]
[1641411176692,0.411901,45842.0,45841.0,0.004]
[1641411176895,2.02450698,45842.0,45837.0,0.4168]
[1641411177091,1.455,45841.0,45837.0,0.4068]
[1641411177291,0.00120056,45838.0,45837.0,0.4068]
[1641411177492,0.40660156,45838.0,45835.0,0.0001]
[1641411177696,0.09470056,45838.0,45835.0,0.0001]
[1641411177893,0.09470056,45838.0,45834.0,0.18402996]
[1641411177894,0.52,45836.0,45834.0,0.18402996]
[1641411178091,0.0435,45835.0,45831.0,0.004]
[1641411178291,0.58633501,45834.0,45831.0,0.004]
[1641411178492,0.0435,45833.0,45831.0,0.004]
[1641411178690,0.58633501,45832.0,45831.0,0.004]
[1641411178949,0.67983501,45832.0,45831.0,0.113108]
[1641411179238,0.67983501,45832.0,45831.0,0.054]
[1641411179437,0.67983501,45832.0,45831.0,0.024]
[1641411179641,0.68469548,45832.0,45831.0,0.004]
[1641411179838,0.63469548,45832.0,45831.0,0.004]
[1641411180241,0.63469548,45832.0,45830.0,0.0176637]
[1641411180649,0.63469548,45832.0,45827.0,0.05456216]
[1641411180650,0.68469548,45832.0,45827.0,0.05456216]
[1641411181139,0.68469548,45832.0,45825.0,1.72835075]
[1641411181341,0.68469548,45832.0,45827.0,0.00043866]
[1641411181641,1.21,45831.0,45825.0,1.72378941]
[1641411181840,0.0435,45830.0,45825.0,1.72378941]
[1641411182040,0.0012363,45826.0,45823.0,0.109128]
[1641411182342,0.0012363,45826.0,45817.0,0.348269]
[1641411182343,0.06327,45826.0,45817.0,0.348269]
[1641411182540,0.04474206,45825.0,45821.0,0.4368]
[1641411182787,0.65469,45824.0,45821.0,0.4368]
[1641411182986,0.416479,45823.0,45821.0,0.4368]
[1641411183186,0.65469,45822.0,45821.0,0.4368]
[1641411183584,0.65469,45822.0,45821.0,0.004]
[1641411183983,0.65469,45822.0,45820.0,0.028571]
[1641411184587,0.65428,45822.0,45820.0,0.028571]
[1641411184787,0.65428,45822.0,45820.0,0.08313989]
[1641411185188,0.65428,45822.0,45820.0,0.13313989]
[1641411185391,0.65914161,45822.0,45820.0,0.13313989]
[1641411185586,0.65914161,45822.0,45820.0,0.08313989]
[1641411185787,0.65914161,45822.0,45819.0,0.1905727]
[1641411186187,0.65914161,45822.0,45821.0,6.213e-05]
[1641411186470,1.6505727,45819.0,45818.0,0.01003494]
[1641411186660,2.63918788,45819.0,45818.0,0.01003494]
[1641411186860,3.34346788,45819.0,45818.0,0.01003494]
[1641411187059,4.5950681,45819.0,45818.0,3.494e-05]
[1641411187461,4.58050937,45819.0,45818.0,3.494e-05]
[1641411188763,1.46,45818.0,45811.0,0.004]
[1641411188962,4.9963251,45819.0,45811.0,0.004]
[1641411188963,4.53641202,45812.0,45811.0,0.004]
[1641411189162,4.29107926,45812.0,45811.0,0.004]
[1641411189362,1.62407926,45812.0,45811.0,0.004]
[1641411189961,2.22003314,45812.0,45811.0,0.004]
[1641411190189,2.22122297,45812.0,45811.0,0.004]
[1641411190693,3.37822297,45812.0,45811.0,0.004]
[1641411190990,1.68473278,45812.0,45811.0,0.004]
[1641411191194,1.49839178,45812.0,45811.0,0.004]
[1641411191419,1.16033252,45812.0,45811.0,0.104]
[1641411191591,1.16033252,45812.0,45811.0,1.4199624]
[1641411191791,1.16033252,45812.0,45811.0,0.5804594]
[1641411191989,0.66033252,45812.0,45811.0,0.3034624]
[1641411192191,0.66033252,45812.0,45811.0,0.2599624]
[1641411192390,0.1905727,45819.0,45812.0,0.749143]
[1641411192590,0.1905727,45819.0,45813.0,0.14142443]
[1641411192790,0.1905727,45819.0,45814.0,0.10914505]
[1641411192992,0.1905727,45819.0,45817.0,0.05457253]
[1641411193392,0.1905727,45819.0,45813.0,0.054572]
[1641411194037,0.65479,45818.0,45813.0,0.054572]
[1641411194238,0.361901,45817.0,45813.0,0.054572]
[1641411194437,0.65479,45816.0,45814.0,1.23504706]
[1641411195436,0.65479,45816.0,45812.0,1.23504706]
[1641411195635,0.65479,45816.0,45812.0,1.55946868]
[1641411196236,0.709374,45816.0,45812.0,1.23504706]
[1641411196638,0.709374,45816.0,45811.0,0.004]
[1641411196639,0.859374,45816.0,45813.0,1.23504706]
[1641411196837,0.71423639,45816.0,45813.0,1.23504706]
[1641411197040,0.86423639,45816.0,45813.0,1.23504706]
[1641411197239,1.90493552,45814.0,45813.0,1.23504706]
[1641411197442,4.1920201,45814.0,45813.0,1.23504706]
[1641411197689,2.81545811,45813.0,45812.0,1.23547591]
[1641411197888,3.93024711,45813.0,45812.0,1.03907591]
[1641411198088,4.08024711,45813.0,45812.0,1.03907591]
[1641411198289,0.5816573,45812.0,45801.0,0.004]
[1641411198494,0.37234508,45802.0,45801.0,0.004]
[1641411198689,1.08697508,45802.0,45801.0,0.004]
[1641411198891,1.49887608,45802.0,45801.0,0.004]
[1641411199289,1.701901,45801.0,45799.0,1.72806589]
[1641411199489,1.016691,45800.0,45797.0,0.01217585]
[1641411199888,1.166691,45800.0,45797.0,0.00717585]
[1641411200093,1.066691,45800.0,45797.0,0.00717585]
[1641411200290,1.016691,45800.0,45792.0,0.16626716]
[1641411201093,1.016691,45800.0,45799.0,0.19329421]
[1641411201459,0.412001,45800.0,45799.0,0.19329421]
[1641411201638,0.00128282,45803.0,45799.0,0.18829421]
[1641411201839,1.017011,45802.0,45799.0,0.18829421]
[1641411202246,1.017011,45802.0,45791.0,0.004]
[1641411202440,1.02187483,45802.0,45794.0,0.109197]
[1641411203041,1.07187483,45802.0,45794.0,0.109197]
[1641411203441,1.07187483,45802.0,45798.0,0.054598]
[1641411203644,1.02187483,45802.0,45798.0,0.054598]
[1641411204242,0.054602,45801.0,45798.0,0.054598]
[1641411204442,0.054602,45801.0,45794.0,0.109197]
[1641411204443,1.017011,45800.0,45794.0,0.109197]
[1641411204642,1.017011,45800.0,45796.0,0.054601]
[1641411205044,1.017011,45800.0,45793.0,0.19491521]
[1641411205487,1.017011,45800.0,45796.0,0.000428]
[1641411205886,1.017011,45800.0,45797.0,0.054602]
[1641411206488,1.067011,45800.0,45797.0,0.054602]
[1641411206686,1.067011,45800.0,45796.0,0.000428]
[1641411206887,0.00125886,45797.0,45796.0,0.000428]
[1641411207089,2.53288286,45797.0,45796.0,0.000428]
[1641411207486,2.58288286,45797.0,45796.0,0.000428]
[1641411207886,1.12774711,45797.0,45796.0,0.000428]
[1641411208087,1.07774711,45797.0,45796.0,0.000428]
[1641411208287,1.07774711,45797.0,45796.0,0.00057212]
[1641411209331,1.12774711,45797.0,45796.0,0.00057212]
[1641411209732,1.12700866,45797.0,45796.0,0.00057212]
[1641411209934,1.07700866,45797.0,45796.0,0.00057212]
[1641411210431,1.07700866,45797.0,45796.0,0.00014412]
[1641411210832,1.12700866,45797.0,45796.0,0.00014412]
[1641411211436,1.97200866,45797.0,45796.0,0.00014412]
[1641411212435,2.07200866,45797.0,45796.0,0.00014412]
[1641411212684,2.07329025,45797.0,45796.0,0.00014412]
[1641411213286,2.07290559,45797.0,45796.0,0.00014412]
[1641411213684,1.22290559,45797.0,45796.0,0.00014412]
[1641411214089,1.46,45796.0,45788.0,0.10885975]
[1641411214284,1.017011,45795.0,45788.0,0.10885975]
[1641411214485,1.067011,45795.0,45788.0,0.10885975]
[1641411215286,0.41261401,45791.0,45788.0,0.10885975]
[1641411215486,0.65501,45790.0,45788.0,0.10885975]
[1641411216536,0.65501,45790.0,45785.0,0.054618]
[1641411216937,0.65501,45790.0,45784.0,0.85129884]
[1641411217735,0.65501,45790.0,45786.0,0.054617]
[1641411217936,0.054618,45788.0,45786.0,0.054617]
[1641411218135,0.65501,45787.0,45786.0,0.054617]
[1641411219840,0.65501,45787.0,45786.0,1.55433524]
[1641411220035,0.65501,45787.0,45786.0,1.96633624]
[1641411220288,0.65501,45787.0,45786.0,1.72667864]
[1641411220889,0.65501,45787.0,45786.0,2.07073584]
[1641411221090,0.01213623,45792.0,45787.0,0.83]
[1641411221288,0.01213623,45792.0,45791.0,0.17114312]
[1641411221893,0.01213623,45792.0,45791.0,0.22114312]
[1641411222090,0.01213623,45792.0,45791.0,0.45384283]
[1641411222290,0.054603,45798.0,45791.0,0.45384283]
[1641411222488,0.054603,45798.0,45792.0,0.05460314]
[1641411223293,0.16047943,45802.0,45796.0,0.054603]
[1641411223294,0.109207,45802.0,45796.0,0.054603]
[1641411223489,0.3032,45807.0,45797.0,0.26255211]
[1641411223690,0.3032,45807.0,45795.0,0.054596]
[1641411223691,0.05,45802.0,45795.0,0.054596]
[1641411223984,0.00129935,45805.0,45784.0,0.00042277]
[1641411223985,0.00121007,45797.0,45784.0,0.00042277]
[1641411224270,0.00122448,45792.0,45784.0,0.00042277]
[1641411224475,0.32754,45788.0,45784.0,0.00042277]
[1641411224671,0.405501,45787.0,45784.0,0.00042277]
[1641411224871,0.400501,45787.0,45784.0,0.00042277]
[1641411225076,0.362043,45783.0,45781.0,3.41e-06]
[1641411225274,0.69630759,45782.0,45781.0,3.41e-06]
[1641411225472,0.362043,45778.0,45771.0,3.341e-05]
[1641411225672,1.46121678,45773.0,45769.0,0.00011]
[1641411225873,0.362043,45770.0,45769.0,0.00011]
[1641411226073,0.455543,45770.0,45769.0,0.00011]
[1641411226270,0.555543,45770.0,45769.0,0.00011]
[1641411226473,0.55681476,45770.0,45769.0,0.00011]
[1641411226873,0.63288476,45770.0,45769.0,0.00011]
[1641411227272,1.78988476,45770.0,45769.0,0.00011]
[1641411227898,0.45681476,45770.0,45769.0,0.00011]
[1641411228097,0.405543,45770.0,45769.0,0.00011]
[1641411229097,0.0435,45770.0,45769.0,0.00011]
[1641411230499,0.69896,45770.0,45769.0,0.00023752]
[1641411231549,0.69896,45770.0,45769.0,1.23657142]
[1641411232748,0.69896,45770.0,45769.0,1.38715249]
[1641411233147,1.78896,45770.0,45769.0,1.23657142]
[1641411233548,0.69896,45770.0,45769.0,1.23657142]
[1641411235188,1.84896,45770.0,45769.0,1.23657142]
[1641411235490,0.69896,45770.0,45769.0,1.33657142]
[1641411235889,0.79896,45770.0,45769.0,1.33657142]